bitfinex-derivatives/quotes_BTCF0:USTF0_20241009
["timestamp","ask_amount","ask_price","bid_price","bid_amount"]
[1728490576325,0.44139,62082.0,62081.0,0.080592]
[1728490576725,0.45539,62082.0,62081.0,0.080592]
[1728490576926,0.3748,62082.0,62076.0,0.0803238]
[1728490577120,0.3608,62077.0,62076.0,0.080598]
[1728490577527,0.441397,62077.0,62076.0,0.080598]
[1728490578023,0.3608,62077.0,62076.0,0.080598]
[1728490578328,0.3608,62077.0,62076.0,0.081598]
[1728490578920,0.44139,62082.0,62081.0,0.080592]
[1728490579119,0.44139,62082.0,62081.0,0.270592]
[1728490579322,0.44139,62082.0,62081.0,0.080592]
[1728490580221,0.080594,62079.0,62078.0,0.270596]
[1728490580725,0.3618,62082.0,62078.0,0.19]
[1728490580919,0.444391,62082.0,62081.0,0.080592]
[1728490581121,0.443391,62082.0,62081.0,0.081592]
[1728490581739,0.443391,62082.0,62081.0,0.080592]
[1728490581740,0.441391,62082.0,62081.0,0.080592]
[1728490582630,0.080594,62079.0,62078.0,0.001]
[1728490583132,0.080594,62079.0,62078.0,0.080596]
[1728490583924,0.080594,62079.0,62078.0,0.081596]
[1728490584430,0.200594,62079.0,62078.0,0.001]
[1728490584619,0.683834,62079.0,62078.0,0.001]
[1728490584820,0.735034,62079.0,62078.0,0.001]
[1728490585127,0.251794,62079.0,62078.0,0.001]
[1728490585330,0.131794,62079.0,62078.0,0.081596]
[1728490586021,0.080594,62079.0,62078.0,0.081596]
[1728490586421,0.7216,62082.0,62081.0,0.080592]
[1728490587427,0.00241709,62086.0,62085.0,0.080587]
[1728490587628,1.86172,62088.0,62085.0,0.19]
[1728490587828,1.8608,62088.0,62087.0,0.080584]
[1728490588034,0.3608,62088.0,62087.0,0.080584]
[1728490589039,0.00092,62094.0,62093.0,0.080576]
[1728490589241,0.45120931,62095.0,62094.0,0.080575]
[1728490589435,1.95120931,62095.0,62094.0,0.080575]
[1728490589830,1.87063531,62095.0,62094.0,0.080575]
[1728490590529,1.87663531,62095.0,62094.0,0.080575]
[1728490590724,1.8668,62095.0,62094.0,0.080575]
[1728490590931,1.8728,62095.0,62094.0,0.080575]
[1728490591634,1.512,62095.0,62094.0,0.080575]
[1728490591835,1.512,62095.0,62094.0,0.19923323]
[1728490592039,0.092574,62095.0,62094.0,0.080575]
[1728490592833,0.080578,62092.0,62091.0,0.080578]
[1728490593032,0.080581,62089.0,62088.0,0.06415823]
[1728490593244,0.080583,62088.0,62087.0,0.080583]
[1728490594042,0.3608,62089.0,62086.0,0.06415823]
[1728490594233,0.080585,62086.0,62084.0,0.14474523]
[1728490594536,0.080585,62086.0,62084.0,0.080587]
[1728490594740,0.080587,62085.0,62084.0,0.080587]
[1728490594936,0.080585,62086.0,62083.0,0.06415823]
[1728490595142,0.080585,62086.0,62085.0,0.080587]
[1728490596449,0.080585,62086.0,62085.0,0.081587]
[1728490596939,0.080585,62086.0,62085.0,0.080587]
[1728490597138,0.080585,62086.0,62085.0,0.081587]
[1728490597644,0.081585,62086.0,62085.0,0.080587]
[1728490598032,0.084585,62086.0,62085.0,0.080587]
[1728490598432,0.004,62086.0,62085.0,0.080587]
[1728490599236,0.003,62086.0,62085.0,0.25903877]
[1728490599640,0.3608,62089.0,62088.0,0.080583]
[1728490600542,0.441381,62089.0,62088.0,0.080583]
[1728490602341,0.441381,62089.0,62088.0,0.17793254]
[1728490602844,1.626581,62089.0,62084.0,0.08043537]
[1728490603035,1.626581,62089.0,62083.0,0.06435332]
[1728490603036,0.3608,62085.0,62083.0,0.06435332]
[1728490603239,0.753788,62084.0,62081.0,0.06435332]
[1728490603439,0.44139,62082.0,62081.0,0.06435332]
[1728490603748,0.55139,62082.0,62081.0,0.06435332]
[1728490603938,0.080592,62081.0,62080.0,0.06435332]
[1728490604139,1.926492,62081.0,62080.0,0.06435332]
[1728490604740,0.080593,62080.0,62079.0,0.080594]
[1728490604938,0.180593,62080.0,62077.0,0.08043537]
[1728490605139,0.080596,62078.0,62077.0,0.16103237]
[1728490605438,0.080596,62078.0,62077.0,0.080597]
[1728490605641,0.080596,62078.0,62077.0,0.16103237]
[1728490605944,0.080596,62078.0,62077.0,0.08043537]
[1728490606146,0.080597,62077.0,62076.0,0.08043537]
[1728490606447,0.080598,62076.0,62075.0,0.08043537]
[1728490606643,0.080598,62076.0,62075.0,0.1782444]
[1728490607035,0.238398,62076.0,62075.0,0.1782444]
[1728490607253,0.0806,62075.0,62074.0,0.08043537]
[1728490607433,0.2706,62075.0,62074.0,0.08043537]
[1728490607838,0.080601,62074.0,62073.0,0.08043537]
[1728490608044,0.080602,62073.0,62072.0,0.08285184]
[1728490608247,0.080605,62071.0,62069.0,0.0643244]
[1728490608549,0.2706,62075.0,62058.0,0.0004]
[1728490608550,0.270609,62068.0,62067.0,0.0643244]
[1728490608750,0.270609,62068.0,62066.0,0.0643244]
[1728490608751,0.08061,62067.0,62066.0,0.0643244]
[1728490608941,0.08061,62067.0,62061.0,0.080618]
[1728490608942,0.080611,62066.0,62065.0,0.0643244]
[1728490609249,0.080611,62066.0,62062.0,0.0643244]
[1728490609250,0.080615,62063.0,62062.0,0.0643244]
[1728490609555,0.080619,62060.0,62059.0,0.0643244]
[1728490609850,0.270619,62060.0,62059.0,0.0643244]
[1728490610051,0.08062,62059.0,62058.0,0.1453464]
[1728490610252,0.08062,62059.0,62058.0,0.081022]
[1728490611451,0.001,62060.0,62059.0,0.08062]
[1728490611768,0.3608,62063.0,62062.0,0.080616]
[1728490612055,0.3608,62063.0,62062.0,0.270616]
[1728490612547,0.3608,62063.0,62062.0,0.327416]
[1728490613153,0.3618,62063.0,62062.0,0.328416]
[1728490614050,0.3628,62063.0,62062.0,0.328416]
[1728490614448,0.443415,62063.0,62062.0,0.138416]
[1728490614649,0.443415,62063.0,62062.0,0.001]
[1728490614650,0.633415,62063.0,62062.0,0.001]
[1728490615447,0.733415,62063.0,62062.0,0.001]
[1728490616949,0.443415,62063.0,62062.0,0.001]
[1728490617158,0.443415,62063.0,62062.0,0.081616]
[1728490617744,0.3628,62063.0,62062.0,0.081616]
[1728490618543,0.3645,62072.0,62062.0,0.081616]
[1728490618751,0.3608,62072.0,62071.0,0.080605]
[1728490618950,0.080598,62077.0,62071.0,0.080605]
[1728490619156,0.080598,62077.0,62074.0,0.19]
[1728490619753,0.080598,62077.0,62076.0,0.080598]
[1728490619954,0.631392,62081.0,62070.0,0.1169]
[1728490620149,0.080605,62072.0,62071.0,0.080604]
[1728490620358,0.3608,62073.0,62072.0,0.080603]
[1728490621664,0.080596,62079.0,62078.0,0.080596]
[1728490623069,0.3608,62081.0,62080.0,0.080593]
[1728490624058,0.080598,62078.0,62077.0,0.080597]
[1728490624869,0.3608,62081.0,62067.0,0.73816609]
[1728490625072,0.080605,62071.0,62067.0,0.45816609]
[1728490625367,0.080601,62075.0,62074.0,0.0806]
[1728490626668,0.080601,62075.0,62074.0,0.0836]
[1728490627055,0.470601,62075.0,62074.0,0.06723956]
[1728490627264,0.080605,62071.0,62067.0,0.06423956]
[1728490627460,0.3608,62068.0,62066.0,0.06423956]
[1728490627770,0.3608,62068.0,62067.0,0.06425441]
[1728490627965,0.3608,62068.0,62066.0,0.06425441]
[1728490628173,0.080611,62066.0,62065.0,0.14486741]
[1728490628560,0.080611,62066.0,62065.0,0.080613]
[1728490629771,0.080614,62064.0,62061.0,0.16091601]
[1728490629968,0.441416,62062.0,62061.0,0.16091601]
[1728490630271,0.441416,62062.0,62061.0,0.080617]
[1728490631773,0.08062,62059.0,62058.0,0.0004]
[1728490631968,0.36062,62059.0,62058.0,0.06470179]
[1728490632163,0.36062,62059.0,62058.0,0.0004]
[1728490633470,0.36262,62059.0,62058.0,0.0004]
[1728490635271,0.37264158,62059.0,62058.0,0.0004]
[1728490636167,0.48264158,62059.0,62058.0,0.0004]
[1728490638876,0.48464158,62059.0,62058.0,0.0004]
[1728490639467,3.06704158,62059.0,62058.0,0.0004]
[1728490639668,0.080629,62052.0,62051.0,0.00281727]
[1728490639880,0.721429,62052.0,62051.0,0.0004]
[1728490640374,0.080635,62048.0,62047.0,0.0004]
[1728490640564,0.681435,62048.0,62047.0,0.0004]
[1728490640974,2.181435,62048.0,62047.0,0.0004]
[1728490641767,2.664955,62048.0,62035.0,0.0037]
[1728490642078,0.08065,62036.0,62035.0,0.0037]
[1728490642266,0.080657,62031.0,62030.0,0.00241794]
[1728490642465,0.741457,62031.0,62030.0,0.00241794]
[1728490643264,1.816097,62031.0,62030.0,0.00241794]
[1728490643670,0.080667,62025.0,62019.0,0.06416112]
[1728490643877,0.080671,62021.0,62020.0,0.080669]
[1728490644375,0.19,62024.0,62023.0,0.080667]
[1728490645267,0.19,62024.0,62018.0,0.0559]
[1728490645268,0.080672,62021.0,62020.0,0.080671]
[1728490645472,0.442472,62021.0,62018.0,0.0559]
[1728490645668,0.080672,62019.0,62018.0,0.136574]
[1728490645883,0.441472,62021.0,62018.0,0.136574]
[1728490646079,0.01094041,62024.0,62020.0,0.080671]
[1728490646080,0.002,62024.0,62020.0,0.080671]
[1728490646376,0.002,62024.0,62023.0,0.270667]
[1728490646582,0.3608,62026.0,62023.0,0.19]
[1728490646779,0.3608,62026.0,62025.0,0.080665]
[1728490646980,0.3608,62026.0,62015.0,0.06416112]
[1728490647167,0.631471,62020.0,62019.0,0.080671]
[1728490647368,0.441471,62020.0,62019.0,0.080671]
[1728490648972,0.442471,62020.0,62019.0,0.080671]
[1728490649376,0.443471,62020.0,62019.0,0.080671]
[1728490649881,0.080677,62016.0,62011.0,0.080683]
[1728490650083,0.633471,62020.0,62009.0,0.04795832]
[1728490650373,0.633471,62020.0,62008.0,0.36188]
[1728490650374,0.080679,62015.0,62014.0,0.080677]
[1728490651377,0.080679,62015.0,62011.0,0.080682]
[1728490651378,0.080685,62012.0,62011.0,0.080682]
[1728490652672,0.080685,62012.0,62008.0,0.59875832]
[1728490652673,0.001,62012.0,62009.0,0.04795832]
[1728490652988,0.002,62012.0,62011.0,0.080683]
[1728490653280,0.082681,62012.0,62011.0,0.080683]
[1728490653580,0.002,62012.0,62011.0,0.080683]
[1728490653780,0.001,62012.0,62011.0,0.080683]
[1728490654083,0.082681,62012.0,62011.0,0.080683]
[1728490654280,0.081681,62012.0,62011.0,0.080683]
[1728490654483,0.082681,62012.0,62011.0,0.080683]
[1728490655178,0.080684,62011.0,62009.0,0.04795832]
[1728490655378,0.080684,62011.0,62008.0,0.59983832]
[1728490655585,0.002,62012.0,62008.0,0.59875832]
[1728490655888,0.002,62012.0,62011.0,0.080683]
[1728490656384,0.002,62012.0,62011.0,0.270683]
[1728490656587,0.3608,62015.0,62014.0,0.080679]
[1728490657879,0.3608,62015.0,62014.0,0.09081187]
[1728490658074,0.5508,62015.0,62011.0,0.04795832]
[1728490658277,0.5508,62015.0,62001.0,0.0037]
[1728490658278,0.080685,62009.0,62001.0,0.0037]
[1728490658475,0.080698,61999.0,61993.0,0.42496112]
[1728490658683,0.270698,61999.0,61998.0,0.08074]
[1728490658890,0.080698,61999.0,61998.0,4e-05]
[1728490659288,0.270698,61999.0,61998.0,4e-05]
[1728490659980,0.271698,61999.0,61998.0,0.00204]
[1728490660386,0.081698,61999.0,61998.0,0.08274]
[1728490661288,0.002,61999.0,61998.0,0.08374]
[1728490661482,0.001,61999.0,61998.0,0.08174]
[1728490661684,0.002,61999.0,61998.0,0.08274]
[1728490662693,0.002,61999.0,61998.0,0.14314]
[1728490664094,0.082698,61999.0,61998.0,0.14314]
[1728490664484,0.002,61999.0,61998.0,0.14314]
[1728490664886,0.192,61999.0,61998.0,0.00204]
[1728490665088,0.392698,61999.0,61998.0,0.00204]
[1728490666486,1.476578,61999.0,61998.0,0.00204]
[1728490666687,0.080715,61986.0,61985.0,0.0037]
[1728490666885,0.080722,61981.0,61980.0,0.080722]
[1728490667086,0.5508,61987.0,61983.0,0.080718]
[1728490667087,0.080718,61985.0,61983.0,0.080718]
[1728490667289,0.080718,61984.0,61983.0,0.080718]
[1728490668396,0.080718,61984.0,61977.0,0.01527]
[1728490668397,0.080726,61978.0,61977.0,0.01527]
[1728490668590,0.080726,61978.0,61961.0,0.19]
[1728490668591,0.6108,61978.0,61965.0,0.06416112]
[1728490668788,0.6108,61978.0,61962.0,0.06416112]
[1728490668789,0.5508,61966.0,61962.0,0.06416112]
[1728490668989,0.5508,61963.0,61956.0,0.06413754]
[1728490669292,0.3608,61957.0,61948.0,0.0037]
[1728490669490,0.3608,61949.0,61948.0,0.080765]
[1728490670292,0.3608,61949.0,61944.0,0.0037]
[1728490670293,0.080769,61945.0,61944.0,0.0037]
[1728490670587,0.080774,61941.0,61939.0,0.096925]
[1728490671098,0.19,61942.0,61941.0,0.080774]
[1728490671301,0.48432,61941.0,61940.0,0.080775]
[1728490671602,0.48432,61941.0,61939.0,0.01615]
[1728490671603,0.080775,61940.0,61939.0,0.01615]
[1728490672794,0.28,61943.0,61940.0,0.080775]
[1728490672992,0.080775,61940.0,61939.0,0.01615]
[1728490673595,0.360772,61943.0,61940.0,0.080775]
[1728490674098,0.360772,61943.0,61939.0,0.01615]
[1728490674099,0.3608,61944.0,61939.0,0.01615]
[1728490674295,0.3608,61944.0,61943.0,0.080771]
[1728490675398,0.3648,61944.0,61943.0,0.080771]
[1728490675603,0.3658,61944.0,61943.0,0.080771]
[1728490676189,0.3608,61947.0,61943.0,1.165091]
[1728490676398,0.3608,61947.0,61946.0,0.360767]
[1728490676597,0.3608,61947.0,61946.0,0.080767]
[1728490677098,0.3608,61955.0,61946.0,0.360767]
[1728490677400,0.08076,61952.0,61951.0,0.080761]
[1728490677603,0.080762,61951.0,61946.0,0.080767]
[1728490677803,0.080775,61940.0,61939.0,0.01615]
[1728490678008,0.080775,61940.0,61935.0,0.00612169]
[1728490678009,0.08078,61936.0,61935.0,0.00242169]
[1728490678305,0.4708,61936.0,61926.0,0.0037]
[1728490678598,0.080794,61926.0,61925.0,0.01515]
[1728490678906,1.680794,61926.0,61925.0,0.01515]
[1728490679801,1.680794,61926.0,61912.0,0.2837]
[1728490679802,3.126034,61926.0,61912.0,0.0037]
[1728490680108,0.3608,61914.0,61913.0,0.36081]
[1728490680397,0.3608,61917.0,61916.0,0.080806]
[1728490680808,1.8608,61917.0,61916.0,0.080806]
[1728490681801,0.001,61917.0,61916.0,0.080806]
[1728490682303,0.002,61917.0,61916.0,0.081806]
[1728490682507,0.002,61917.0,61916.0,0.566326]
[1728490682809,0.3608,61926.0,61925.0,0.080795]
[1728490683104,0.3608,61931.0,61930.0,0.080788]
[1728490683304,0.3608,61937.0,61936.0,0.08078]
[1728490684505,0.3608,61937.0,61936.0,0.36078]
[1728490684990,0.3668,61937.0,61936.0,0.36078]
[1728490685595,0.0037,61948.0,61947.0,0.080766]
[1728490685797,0.080763,61950.0,61949.0,0.080762]
[1728490686009,0.080759,61953.0,61952.0,0.080759]
[1728490686301,0.080754,61957.0,61956.0,0.080753]
[1728490686507,0.002422,61958.0,61947.0,0.3608]
[1728490686822,0.002422,61958.0,61957.0,0.080753]
[1728490686995,0.002422,61958.0,61948.0,0.080765]
[1728490686996,1.50084,61960.0,61952.0,0.3608]
[1728490687196,0.0037,61967.0,61966.0,0.080741]
[1728490687395,0.080737,61970.0,61963.0,0.3608]
[1728490687595,0.080731,61974.0,61972.0,0.080733]
[1728490687800,0.3608,61976.0,61968.0,0.3608]
[1728490688002,0.08073,61975.0,61968.0,0.3608]
[1728490688199,0.441525,61979.0,61968.0,0.3608]
[1728490688405,0.080726,61978.0,61977.0,0.080727]
[1728490688895,0.080726,61978.0,61968.0,0.3608]
[1728490689095,0.080728,61977.0,61975.0,0.080729]
[1728490689296,0.080728,61976.0,61975.0,0.080729]
[1728490689600,0.64322087,61990.0,61973.0,0.3608]
[1728490689797,0.64322087,61990.0,61980.0,0.080722]
[1728490689798,0.3608,61985.0,61980.0,0.080722]
[1728490689998,0.080716,61986.0,61985.0,0.080716]
[1728490690308,0.080716,61986.0,61979.0,0.3608]
[1728490690309,0.00242087,61990.0,61988.0,0.080712]
[1728490690500,0.00242087,61990.0,61981.0,0.28]
[1728490690704,0.080711,61989.0,61986.0,0.080715]
[1728490690902,0.080711,61989.0,61981.0,0.28]
[1728490690903,0.00242087,61990.0,61981.0,0.28]
[1728490691097,0.00242087,61990.0,61989.0,0.080711]
[1728490691307,0.00242087,61990.0,61979.0,0.3608]
[1728490691308,0.080712,61989.0,61985.0,0.080716]
[1728490691500,0.080712,61989.0,61986.0,0.080715]
[1728490691806,1.5,61988.0,61979.0,0.3608]
[1728490692005,0.007,61985.0,61980.0,0.001]
[1728490692210,0.007,61985.0,61984.0,0.080718]
[1728490692412,1.50084,61988.0,61984.0,0.080718]
[1728490692712,0.080715,61986.0,61985.0,0.002]
[1728490693097,0.080715,61986.0,61979.0,0.3678]
[1728490693098,0.001,61985.0,61980.0,0.007]
[1728490693298,0.001,61985.0,61984.0,0.080718]
[1728490694715,1.50088,61988.0,61984.0,0.3628]
[1728490694911,1.5,61988.0,61987.0,0.080714]
[1728490695218,1.5,61988.0,61987.0,0.360714]
[1728490695399,0.00242087,61990.0,61989.0,0.080711]
[1728490695709,0.00242087,61990.0,61989.0,0.441511]
[1728490695910,1.50242087,61990.0,61989.0,0.441511]
[1728490696811,1.50242087,61990.0,61985.0,0.080716]
[1728490697011,0.080715,61987.0,61985.0,0.080716]
[1728490697609,0.080715,61986.0,61985.0,0.080716]
[1728490698410,1.50526087,61990.0,61987.0,0.080713]
[1728490698606,0.080713,61988.0,61987.0,0.080713]
[1728490700010,0.11,61988.0,61984.0,0.3608]
[1728490700207,0.080719,61983.0,61982.0,0.01515]
[1728490700514,0.12,61983.0,61982.0,0.01515]
[1728490701310,0.080712,61989.0,61988.0,0.080711]
[1728490701506,1.50326087,61990.0,61989.0,0.080711]
[1728490701712,1.50242087,61990.0,61989.0,0.360711]
[1728490702710,1.50242087,61990.0,61989.0,0.080711]
[1728490702911,1.50742087,61990.0,61989.0,0.080711]
[1728490703221,0.00742087,61990.0,61989.0,0.080711]
[1728490703517,0.080715,61986.0,61985.0,0.140216]
[1728490703710,0.080715,61986.0,61984.0,0.080717]
[1728490703711,1.5,61986.0,61984.0,0.080717]
[1728490704613,1.61,61986.0,61984.0,0.080717]
[1728490704810,0.080717,61985.0,61984.0,0.080717]
[1728490705005,0.180717,61985.0,61984.0,0.081717]
[1728490705210,0.180717,61985.0,61984.0,0.082717]
[1728490705407,0.180717,61985.0,61984.0,0.00196]
[1728490705809,0.180717,61985.0,61971.0,0.0646]
[1728490706018,0.080731,61974.0,61971.0,0.0646]
[1728490706622,0.080731,61974.0,61973.0,0.08315223]
[1728490707123,0.08075,61960.0,61954.0,0.3608]
[1728490707316,0.48408,61973.0,61959.0,0.08075]
[1728490707317,0.28,61963.0,61959.0,0.08075]
[1728490707512,0.28,61963.0,61957.0,0.01615]
[1728490707513,0.080752,61958.0,61957.0,0.01615]
[1728490707712,0.470752,61958.0,61957.0,0.01615]
[1728490708015,0.080757,61954.0,61947.0,0.3608]
[1728490708420,1.580757,61954.0,61947.0,0.3608]
[1728490708722,1.690757,61954.0,61947.0,0.3608]
[1728490709114,0.080765,61948.0,61947.0,0.3608]
[1728490709316,0.080765,61948.0,61947.0,0.441566]
[1728490709616,0.080765,61948.0,61947.0,0.3608]
[1728490710120,0.28,61951.0,61946.0,0.080766]
[1728490710425,0.080766,61947.0,61946.0,0.080766]
[1728490710725,0.080769,61945.0,61944.0,0.08077]
[1728490711819,0.080769,61945.0,61944.0,0.08177]
[1728490712323,0.080769,61945.0,61944.0,0.001]
[1728490712514,0.080769,61945.0,61944.0,0.002]
[1728490713114,0.48432,61944.0,61927.0,0.3608]
[1728490713317,0.360782,61935.0,61929.0,0.080788]
[1728490713518,0.360782,61935.0,61931.0,0.080787]
[1728490713928,1.860782,61935.0,61931.0,0.080787]
[1728490714113,1.860782,61935.0,61927.0,0.441592]
[1728490714718,1.864782,61935.0,61927.0,0.441592]
[1728490714922,1.864782,61935.0,61932.0,0.080786]
[1728490715123,1.864782,61935.0,61934.0,0.080783]
[1728490715124,1.584782,61935.0,61934.0,0.080783]
[1728490715325,1.504,61935.0,61934.0,0.080783]
[1728490715630,1.507,61935.0,61934.0,0.080783]
[1728490716019,0.080784,61933.0,61932.0,0.441584]
[1728490716216,1.50784,61935.0,61934.0,0.080783]
[1728490716422,1.507,61935.0,61934.0,0.080783]
[1728490716719,0.007,61935.0,61934.0,0.080783]
[1728490717027,0.007,61935.0,61932.0,0.3608]
[1728490717028,0.080774,61942.0,61933.0,0.1301]
[1728490717230,0.080774,61942.0,61941.0,0.080774]
[1728490717426,0.080777,61939.0,61938.0,0.080778]
[1728490717829,0.080772,61943.0,61937.0,0.3608]
[1728490718132,0.080772,61943.0,61942.0,0.080773]
[1728490718330,1.580772,61943.0,61942.0,0.080773]
[1728490719326,0.080778,61939.0,61938.0,0.080777]
[1728490720722,0.28,61940.0,61939.0,0.080777]
[1728490720922,0.080773,61942.0,61941.0,0.080774]
[1728490721125,0.080778,61939.0,61938.0,0.080778]
[1728490721330,0.080774,61941.0,61940.0,0.080773]
[1728490722927,0.007,61942.0,61941.0,0.080774]
[1728490723332,0.080766,61948.0,61947.0,0.080765]
[1728490723527,1.680766,61948.0,61947.0,0.080765]
[1728490723925,0.1,61948.0,61947.0,0.080765]
[1728490724230,0.0605,61968.0,61947.0,0.080765]
[1728490724231,0.3608,61970.0,61962.0,0.080747]
[1728490724533,0.00242165,61963.0,61962.0,0.080747]
[1728490724835,1.5,61967.0,61962.0,0.080747]
[1728490725035,1.5,61967.0,61966.0,0.080741]
[1728490725335,0.080734,61972.0,61971.0,0.080735]
[1728490725539,0.080734,61972.0,61963.0,0.00108]
[1728490725540,0.84488,61972.0,61963.0,0.00108]
[1728490725840,0.84488,61972.0,61962.0,0.005]
[1728490725841,0.080745,61963.0,61962.0,0.005]
[1728490726139,0.190745,61963.0,61958.0,0.3608]
[1728490726435,0.36075,61959.0,61958.0,0.3608]
[1728490726636,0.47075,61959.0,61958.0,0.3608]
[1728490726842,0.47075,61959.0,61954.0,0.080757]
[1728490727040,0.080756,61955.0,61954.0,0.080757]
[1728490727638,0.080756,61955.0,61947.0,0.080765]
[1728490727639,0.080766,61948.0,61947.0,0.080765]
[1728490727829,0.360766,61948.0,61947.0,0.080765]
[1728490728442,0.28,61948.0,61945.0,0.36322129]
[1728490728735,0.080767,61946.0,61945.0,0.36322129]
[1728490729142,0.080767,61946.0,61945.0,0.00242129]
[1728490730434,0.080767,61946.0,61945.0,0.00342129]
[1728490730741,0.080767,61946.0,61945.0,0.001]
[1728490730935,0.085767,61946.0,61938.0,0.3608]
[1728490731135,0.360777,61939.0,61938.0,0.3608]
[1728490731334,0.080778,61938.0,61937.0,0.01616]
[1728490731535,0.441578,61938.0,61937.0,0.01616]
[1728490731859,0.080794,61926.0,61925.0,0.441594]
[1728490732044,0.28,61926.0,61925.0,0.441594]
[1728490732239,0.28,61926.0,61925.0,0.37696]
[1728490732438,0.360794,61926.0,61925.0,0.37696]
[1728490732633,0.470794,61926.0,61925.0,0.37696]
[1728490732840,0.360794,61926.0,61925.0,0.37696]
[1728490733142,0.360794,61926.0,61925.0,0.457755]
[1728490734449,0.362794,61926.0,61925.0,0.474755]
[1728490734843,0.362794,61926.0,61925.0,0.113955]
[1728490735840,0.282,61926.0,61925.0,0.113955]
[1728490736045,0.002,61926.0,61925.0,0.113955]
[1728490736337,0.080781,61936.0,61925.0,1.29948852]
[1728490736540,0.080781,61936.0,61935.0,0.080782]
[1728490736743,0.28,61937.0,61932.0,0.06432883]
[1728490736948,0.28,61937.0,61936.0,0.08078]
[1728490737445,0.28,61937.0,61936.0,0.14510883]
[1728490738144,0.28,61937.0,61936.0,0.08078]
[1728490738343,0.360779,61937.0,61936.0,0.06933767]
[1728490738538,0.460779,61937.0,61936.0,0.06933767]
[1728490739447,0.460779,61937.0,61936.0,0.005]
[1728490740648,0.360779,61937.0,61936.0,0.005]
[1728490740951,0.461779,61937.0,61936.0,0.006]
[1728490741243,0.461779,61937.0,61935.0,0.06433767]
[1728490741244,0.08078,61936.0,61935.0,0.06433767]
[1728490741449,0.080788,61930.0,61929.0,0.08041104]
[1728490741641,0.551588,61930.0,61929.0,0.08041104]
[1728490743946,0.552588,61930.0,61929.0,0.08241104]
[1728490744149,0.832588,61930.0,61929.0,0.08237104]
[1728490744349,0.832588,61930.0,61929.0,0.002]
[1728490744750,0.831588,61930.0,61929.0,0.002]
[1728490746659,0.551588,61930.0,61929.0,0.002]
[1728490746873,0.831588,61930.0,61929.0,0.002]
[1728490747072,0.551588,61930.0,61929.0,0.002]
[1728490747368,0.28,61930.0,61929.0,0.08279]
[1728490747967,0.28,61930.0,61929.0,0.002]
[1728490748168,0.360788,61930.0,61929.0,0.002]
[1728490748576,0.360788,61930.0,61929.0,0.08279]
[1728490749077,0.460788,61930.0,61929.0,0.002]
[1728490751578,0.180788,61930.0,61929.0,0.002]
[1728490751771,0.460788,61930.0,61929.0,0.002]
[1728490753378,0.1,61930.0,61929.0,0.08279]
[1728490753580,1.7832629,61939.0,61938.0,0.080778]
[1728490753772,1.8631999,61939.0,61938.0,0.080778]
[1728490754074,0.080782,61936.0,61935.0,0.080782]
[1728490754377,0.360782,61936.0,61935.0,0.080782]
[1728490754768,0.080786,61933.0,61932.0,0.080785]
[1728490755072,0.080786,61932.0,61925.0,0.01616]
[1728490755270,0.360794,61926.0,61925.0,0.096955]
[1728490756869,0.361794,61926.0,61925.0,0.102955]
[1728490757066,0.471794,61926.0,61925.0,0.02216]
[1728490757274,0.472794,61926.0,61925.0,0.02216]
[1728490757473,0.471794,61926.0,61925.0,0.02116]
[1728490758067,0.470794,61926.0,61925.0,0.02116]
[1728490758373,0.471794,61926.0,61925.0,0.02116]
[1728490759470,0.471794,61926.0,61925.0,0.101915]
[1728490759982,0.471794,61926.0,61925.0,0.2027935]
[1728490760682,0.361794,61926.0,61925.0,0.2027935]
[1728490762083,0.361794,61926.0,61925.0,0.29903518]
[1728490762469,0.001,61926.0,61925.0,0.32307936]
[1728490762775,0.270788,61931.0,61930.0,0.080788]
[1728490762978,0.270788,61931.0,61930.0,0.30168917]
[1728490763173,0.19,61931.0,61930.0,0.30168917]
[1728490763380,1.5024229,61939.0,61934.0,0.080783]
[1728490763381,0.19,61935.0,61934.0,0.080783]
[1728490763586,0.19,61935.0,61934.0,0.27850057]
[1728490764276,0.270782,61935.0,61934.0,0.1008785]
[1728490764580,0.080792,61927.0,61926.0,0.09683907]
[1728490764779,0.080794,61926.0,61925.0,0.096914]
[1728490766085,0.080794,61926.0,61925.0,0.01612]
[1728490766274,0.080794,61926.0,61925.0,0.096915]
[1728490766475,0.080794,61926.0,61925.0,0.101915]
[1728490766680,0.150794,61926.0,61925.0,0.101915]
[1728490766879,0.150794,61926.0,61925.0,0.02112]
[1728490767576,0.151794,61926.0,61925.0,0.02312]
[1728490767888,0.151794,61926.0,61925.0,0.103915]
[1728490768391,0.151794,61926.0,61925.0,0.02312]
[1728490769288,0.151794,61926.0,61925.0,0.103915]
[1728490769588,0.151794,61926.0,61925.0,0.099915]
[1728490769981,0.150794,61926.0,61925.0,0.098915]
[1728490771575,0.150794,61926.0,61925.0,0.01812]
[1728490771789,0.430794,61926.0,61925.0,0.098915]
[1728490772184,0.430794,61926.0,61925.0,0.01812]
[1728490773978,0.150794,61926.0,61925.0,0.01812]
[1728490774686,0.3608,61938.0,61925.0,0.19580054]
[1728490774887,0.080786,61933.0,61932.0,0.080783]
[1728490775187,0.03,61933.0,61932.0,0.080783]
[1728490775491,0.080783,61934.0,61933.0,0.080782]
[1728490776991,0.095783,61934.0,61933.0,0.081782]
[1728490777189,0.015,61934.0,61933.0,0.081782]
[1728490777390,0.095783,61934.0,61933.0,0.081782]
[1728490777791,0.088783,61934.0,61933.0,0.081782]